fUST/lending_fUST_20241117
["ID","MTS","AMOUNT","RATE_DAILY","PERIOD"]
[342414621,1731832239587,-1000.0,0.000255,2]
[342414622,1731832239597,-303.04848594,0.000255,2]
[342414623,1731832239606,-303.05757821,0.000255,2]
[342414624,1731832239618,-1000.0,0.00025521,2]
[342414625,1731832239627,-1000.0,0.00025521,2]
[342414626,1731832239636,-200.0,0.0002561,4]
[342414627,1731832239646,-954.6418864,0.00025733,2]
[342414628,1731832239655,-303.04848594,0.0002575,2]
[342414629,1731832239665,-303.05757821,0.0002575,2]
[342414630,1731832239680,-523.0,0.00025775,2]
[342414631,1731832239690,-200.0,0.00025857,4]
[342414632,1731832239700,-277.57704596,0.000259,2]
[342414633,1731832239709,-500.0,0.00025973,2]
[342414634,1731832239719,-160.0,0.00025999,4]
[342414635,1731832239729,-258.15085686,0.00025999,5]
[342414636,1731832239738,-448.19643368,0.00026,2]
[342414637,1731832239747,-448.19643368,0.00026,2]
[342414638,1731832239757,-365.4,0.00026,2]
[342414639,1731832239769,-300.0,0.00026,2]
[342414640,1731832239779,-300.0,0.00026,2]
[342414641,1731832239789,-541864.96007801,0.00026,10]
[342414645,1731832240485,-1000.0,0.00024447,2]
[342414646,1731832240495,-1044.89,0.00025158,15]
[342414647,1731832240504,-7135.78574841,0.00026,10]
[342414648,1731832240520,-14852.02934995,0.00026,10]
[342414649,1731832240532,-53242.01715003,0.00026,10]
[342414650,1731832240854,-11668.73812392,0.00026,10]
[342414655,1731832243504,-1418.86883971,0.00024799,2]
[342414656,1731832243514,-1000.6293,0.00025158,15]
[342414657,1731832243523,-9540.48582864,0.00026,10]
[342414658,1731832243535,-4535.9,0.00026,10]
[342414659,1731832243546,-1262.47459469,0.00026,10]
[342414677,1731832246524,-196.0,0.00025,2]
[342414678,1731832246534,-803.94402434,0.00025158,15]
[342414683,1731832477343,400.0,0.00013973,2]
[342414685,1731832541004,166.165,0.0002599,60]
[342414700,1731833307281,400.0,0.00013973,2]
[342414760,1731833432733,-300.0,0.00020278,2]
[342414762,1731833432743,-1097.949754,0.00020279,2]
[342414764,1731833432754,-151.0,0.00020279,2]
[342414766,1731833432764,-151.0,0.00020279,2]
[342414768,1731833432774,-170.893955,0.00020279,2]
[342414770,1731833432784,-170.893955,0.00020279,2]
[342414772,1731833432794,-151.0,0.00020279,2]
[342414774,1731833432804,-151.0,0.00020279,2]
[342414776,1731833432815,-151.0,0.00020447,2]
[342414778,1731833432825,-170.893955,0.00020447,2]
[342414780,1731833432835,-170.893955,0.00020447,2]
[342414782,1731833432845,-151.0,0.00020447,2]
[342414785,1731833432855,-151.0,0.00020447,2]
[342414788,1731833432865,-400.0,0.00020447,2]
[342414792,1731833432874,-164.17266,0.00020496,2]
[342414795,1731833432884,-1097.949754,0.00020528,2]
[342414797,1731833432894,-201.880848,0.00020528,2]
[342414799,1731833432903,-151.0,0.00020802,2]
[342414801,1731833432915,-170.893955,0.00020802,2]
[342414803,1731833432925,-170.893955,0.00020802,2]
[342414805,1731833432935,-151.0,0.00020802,2]
[342414807,1731833432945,-151.0,0.00020802,2]
[342414809,1731833432956,-1097.949754,0.00021,2]
[342414811,1731833432965,-1097.949754,0.00021,2]
[342414813,1731833432975,-151.0,0.00021,2]
[342414815,1731833432985,-151.865444,0.00021,2]
[342414817,1731833432995,-170.893955,0.00021,2]
[342414819,1731833433005,-170.893955,0.00021,2]
[342414821,1731833433015,-170.893955,0.00021,2]
[342414823,1731833433025,-170.893955,0.00021,2]
[342414826,1731833433035,-170.893955,0.00021,2]
[342414828,1731833433045,-170.893955,0.00021,2]
[342414830,1731833433054,-151.0,0.00021,2]
[342414832,1731833433069,-151.0,0.00021,2]
[342414833,1731833433084,-151.0,0.00021,2]
[342414835,1731833433095,-151.0,0.00021,2]
[342414836,1731833433105,-273.81793,0.00021,2]
[342414837,1731833433116,-1097.949754,0.00021014,2]
[342414838,1731833433126,-170.893955,0.00021127,2]
[342414839,1731833433136,-170.893955,0.00021127,2]
[342414840,1731833433147,-151.0,0.00021127,2]
[342414841,1731833433157,-1097.949754,0.0002124,2]
[342414842,1731833433169,-1097.949754,0.0002124,2]
[342414843,1731833433179,-170.893955,0.00021323,2]
[342414844,1731833433189,-170.893955,0.00021323,2]
[342414845,1731833433199,-151.0,0.00021323,2]
[342414846,1731833433210,-1097.949754,0.00021375,2]
[342414847,1731833433220,-1097.949754,0.00021375,2]
[342414848,1731833433230,-170.893955,0.00021532,2]
[342414849,1731833433240,-170.893955,0.00021532,2]
[342414850,1731833433250,-151.0,0.00021532,2]
[342414851,1731833433259,-1097.949754,0.00021788,2]
[342414852,1731833433269,-1097.949754,0.00021788,2]
[342414853,1731833433278,-170.893955,0.00021788,2]
[342414854,1731833433288,-170.893955,0.00021788,2]
[342414855,1731833433298,-151.0,0.00021788,2]
[342414856,1731833433308,-1097.949754,0.00021898,2]
[342414857,1731833433321,-1097.949754,0.00021898,2]
[342414858,1731833433330,-1097.949754,0.00021998,7]
[342414859,1731833433341,-1097.94975781,0.00021998,7]
[342414860,1731833433350,-420.0,0.00022074,2]
[342414861,1731833433361,-175.54,0.000222,2]
[342414862,1731833433371,-174.135,0.00023042,2]
[342414863,1731833433382,-500.0,0.00023287,2]
[342414864,1731833433394,-580.0,0.0002403,2]
[342414865,1731833433405,-14309.75903056,0.00024064,2]
[342414866,1731833433415,-500.0,0.00024657,3]
[342414867,1731833433426,-150.0,0.00024658,2]
[342414868,1731833433436,-315.35880395,0.00024658,2]
[342414869,1731833433446,-500.0,0.00024666,7]
[342414870,1731833433456,-196.0,0.00024932,2]
[342414871,1731833433466,-500.0,0.00024958,2]
[342414872,1731833433474,-500.0,0.00024958,2]
[342414873,1731833433483,-500.0,0.00024958,2]
[342414874,1731833433494,-500.0,0.00024958,2]
[342414875,1731833433506,-500.0,0.00024958,2]
[342414876,1731833433768,-500.0,0.00024958,2]
[342414877,1731833433779,-164.26,0.00024958,2]
[342414878,1731833433789,-160.0,0.00025,2]
[342414879,1731833433799,-300.0,0.00025,2]
[342414880,1731833433811,-300.0,0.00025,2]
[342414881,1731833433820,-300.0,0.00025,2]
[342414882,1731833433830,-300.0,0.00025,2]
[342414883,1731833433839,-300.0,0.00025,2]
[342414884,1731833433849,-300.0,0.00025,2]
[342414885,1731833433858,-271.399999,0.00025,2]
[342414886,1731833433868,-500.0,0.00025,17]
[342414887,1731833433878,-303.03333336,0.00025,2]
[342414888,1731833433889,-303.00000303,0.00025,2]
[342414889,1731833433899,-151.0,0.00025,2]
[342414890,1731833433909,-973.5,0.00025158,15]
[342414891,1731833433918,-303.03333336,0.0002525,2]
[342414892,1731833433927,-303.00000303,0.0002525,2]
[342414893,1731833433938,-303.03333336,0.000255,2]
[342414894,1731833433947,-303.00000303,0.000255,2]
[342414895,1731833433957,-303.03333336,0.0002575,2]
[342414896,1731833433966,-303.00000303,0.0002575,2]
[342414897,1731833433976,-526.63,0.000258,7]
[342414898,1731833433986,-284.99,0.0002586,3]
[342414899,1731833433995,-200.0,0.00025869,4]
[342414900,1731833434005,-500.0,0.00025879,2]
[342414901,1731833434014,-500.0,0.00025879,2]
[342414902,1731833434024,-500.0,0.00025879,2]
[342414903,1731833434034,-156.07842194,0.00025879,2]
[342414904,1731833434044,-459.80821457,0.00025879,2]
[342414905,1731833434053,-500.0,0.00025879,2]
[342414906,1731833434066,-500.0,0.00025879,2]
[342414907,1731833434076,-500.0,0.00025879,2]
[342414908,1731833434086,-500.0,0.00025879,2]
[342414909,1731833434096,-500.0,0.00025879,2]
[342414910,1731833434105,-184.60421327,0.00025879,2]
[342414911,1731833434115,-276.44904094,0.00025879,2]
[342414912,1731833434125,-353.84491258,0.00025879,2]
[342414913,1731833434135,-77421.42560091,0.0002588,2]
[342414914,1731833434144,-15121.16046232,0.00025888,2]
[342414915,1731833434154,-196.0,0.0002589,2]
[342414916,1731833434164,-160.0,0.0002589,2]
[342414917,1731833434174,-1000.0,0.000259,2]
[342414918,1731833434183,-945.91255981,0.00025999,2]
[342414919,1731833434192,-160.0,0.00025999,5]
[342414920,1731833434201,-207.83440853,0.00026,2]
[342414921,1731833434211,-485497.76624812,0.00026,10]
[342414940,1731833441754,-891.7457,0.00025158,15]
[342414941,1731833441764,-462.80497164,0.0002587,10]
[342414998,1731833443742,-858.576572,0.00025158,15]
[342414999,1731833443752,-4168.01694825,0.0002587,10]
[342415010,1731833446640,-500.0,0.00025158,15]
[342415011,1731833446652,-451.0,0.00025158,15]
[342415013,1731833446662,-1550.70321793,0.0002587,10]
[342415016,1731834079460,5000.0,0.00015,2]
[342415017,1731834147605,400.0,0.00013973,2]
[342415122,1731834634376,-810.21459863,0.00020078,3]
[342415123,1731834634386,-400.0,0.00020447,2]
[342415124,1731834634396,-397.0,0.00020985,2]
[342415125,1731834634406,-397.0,0.00022664,4]
[342415126,1731834634415,-297.08196224,0.000229,2]
[342415127,1731834634425,-188.41466107,0.000229,7]
[342415128,1731834634435,-188.41,0.000229,7]
[342415129,1731834634444,-188.41466107,0.000229,7]
[342415130,1731834634454,-188.41466107,0.000229,7]
[342415131,1731834634463,-188.41,0.000229,7]
[342415132,1731834634473,-354.28,0.0002299,3]
[342415133,1731834634482,-300.0,0.00022998,2]
[342415134,1731834634492,-300.0,0.00022998,2]
[342415135,1731834634502,-177.62527982,0.00022999,2]
[342415136,1731834634511,-178.12289468,0.00022999,2]
[342415137,1731834634520,-182.70037043,0.00022999,2]
[342415138,1731834634531,-500.0,0.00022999,2]
[342415139,1731834634541,-500.0,0.00022999,2]
[342415140,1731834634550,-500.0,0.00022999,2]
[342415141,1731834634560,-500.0,0.00022999,2]
[342415142,1731834634570,-500.0,0.00022999,2]
[342415143,1731834634581,-500.0,0.00022999,2]
[342415144,1731834634590,-500.0,0.00022999,2]
[342415145,1731834634599,-500.0,0.00022999,2]
[342415146,1731834634609,-500.0,0.00022999,2]
[342415147,1731834634619,-500.0,0.00022999,2]
[342415148,1731834634628,-500.0,0.00022999,2]
[342415149,1731834634637,-307.26171043,0.00022999,2]
[342415150,1731834634647,-208.70756326,0.00022999,2]
[342415157,1731834638095,-91.29243674,0.00022999,2]
[342415158,1731834638105,-207.83440852,0.00023,2]
[342415159,1731834638115,-180.78047772,0.00023,2]
[342415160,1731834638125,-534.63884079,0.00023,2]
[342415161,1731834638134,-9362.11654151,0.00023,15]
[342415195,1731834642843,-2380.0000001,0.00023,15]
[342415196,1731834642899,-4888.88653459,0.00023,15]
[342415197,1731834642911,-14341.34129516,0.00023,15]
[342415199,1731834642924,-86730.47530489,0.00023,15]
[342415216,1731834645950,-549.631,0.00023,15]
[342415217,1731834645962,-5968.69550002,0.00023,15]
[342415218,1731834645974,-684.24,0.00023,15]
[342415219,1731834645988,-2357.36790456,0.00023,15]
[342415225,1731834943444,400.0,0.00013973,2]
[342415226,1731835109414,397.19,0.00025999,60]
[342415236,1731835397223,367.82798261,0.00025,120]
[342415237,1731835397257,1713.03623663,0.00025,120]
[342415239,1731835525528,300.0,0.00025,120]
[342415240,1731835545292,476.0,0.00025,60]
[342415241,1731835631999,400.0,0.00013973,2]
[342415307,1731835832047,-810.21459863,0.00020247,3]
[342415309,1731835832056,-400.0,0.00020447,2]
[342415310,1731835832066,-127.80694737,0.00020999,2]
[342415311,1731835832078,-172.19305263,0.00020999,2]
[342415312,1731835832087,-300.0,0.00020999,2]
[342415313,1731835832097,-362.57512031,0.00021,5]
[342415360,1731835840135,-2018.63685951,0.00021,5]
[342415362,1731835840149,-261.52327055,0.00021,2]
[342415363,1731835840158,-2283.08986994,0.00021,2]
[342415390,1731835843123,-3440.2495732,0.00021,2]
[342415391,1731835843182,-252.25564392,0.00021,2]
[342415402,1731835846022,-491.35975219,0.00021,2]
[342415403,1731835846034,-584.92980255,0.00021,2]
[342415409,1731836339777,400.0,0.00013973,2]
[342415415,1731836829949,10000.0,0.00026,60]
[342415487,1731837032311,-442.995,0.00020347,3]
[342415489,1731837032320,-164.17266,0.00020394,2]
[342415491,1731837032330,-400.0,0.00020447,2]
[342415493,1731837032340,-300.0,0.00020726,2]
[342415495,1731837032349,-300.0,0.00020726,2]
[342415497,1731837032358,-9823.75416487,0.00020727,2]
[342415499,1731837032369,-12042.06022633,0.00020727,2]
[342415501,1731837032379,-3214.68743571,0.00021,2]
[342415503,1731837032388,-235.68421871,0.00021,2]
[342415505,1731837032397,-1181.2014197,0.00021,2]
[342415507,1731837032408,-161.443946,0.00021091,2]
[342415509,1731837032417,-228.74711039,0.000212,2]
[342415511,1731837032426,-500.0,0.00021494,2]
[342415513,1731837032436,-500.0,0.00021768,2]
[342415515,1731837032445,-373.87170647,0.00021936,2]
[342415517,1731837032454,-165.628558,0.00021981,2]
[342415519,1731837032463,-166.0,0.00022,2]
[342415521,1731837032472,-160.0,0.00022,2]
[342415523,1731837032481,-165.628558,0.00022036,2]
[342415525,1731837032491,-500.0,0.00022042,2]
[342415527,1731837032502,-165.628558,0.00022091,2]
[342415529,1731837032511,-500.0,0.00022316,2]
[342415531,1731837032520,-373.87170643,0.00022502,2]
[342415533,1731837032529,-420.0,0.00022551,2]
[342415535,1731837032538,-500.0,0.0002259,2]
[342415537,1731837032547,-420.0,0.00022798,2]
[342415539,1731837032556,-500.0,0.00022864,2]
[342415541,1731837032566,-188.41466107,0.000229,7]
[342415542,1731837032576,-188.41,0.000229,7]
[342415543,1731837032585,-188.41466107,0.000229,7]
[342415544,1731837032595,-188.41466107,0.000229,7]
[342415545,1731837032604,-188.41,0.000229,7]
[342415546,1731837032613,-1243.12544874,0.000229,2]
[342415547,1731837032623,-180.24692125,0.00022973,2]
[342415548,1731837032632,-500.0,0.00022973,2]
[342415549,1731837032642,-502.44998997,0.00022973,2]
[342415550,1731837032651,-681.88,0.0002299,3]
[342415551,1731837032660,-174.135,0.00022998,2]
[342415552,1731837032670,-623.46443796,0.00022999,2]
[342415553,1731837032679,-500.0,0.00022999,2]
[342415554,1731837032690,-500.0,0.00022999,2]
[342415555,1731837032699,-455.51074705,0.00022999,2]
[342415556,1731837032709,-500.0,0.00022999,2]
[342415557,1731837032718,-500.0,0.00022999,2]
[342415558,1731837032728,-500.0,0.00022999,2]
[342415559,1731837032738,-500.0,0.00022999,2]
[342415560,1731837032748,-500.0,0.00022999,2]
[342415561,1731837032757,-500.0,0.00022999,2]
[342415562,1731837032767,-500.0,0.00022999,2]
[342415563,1731837032777,-500.0,0.00022999,2]
[342415564,1731837032786,-500.0,0.00022999,2]
[342415565,1731837032799,-500.0,0.00022999,2]
[342415566,1731837032808,-208.70756326,0.00022999,2]
[342415567,1731837032818,-307.26171043,0.00022999,2]
[342415568,1731837032828,-500.0,0.00022999,2]
[342415569,1731837032837,-500.0,0.00022999,2]
[342415570,1731837032847,-287.96666347,0.00022999,2]
[342415571,1731837032856,-200.0,0.00022999,4]
[342415572,1731837032865,-127540.37235035,0.00023,15]
[342415573,1731837032879,-29107.843793,0.00023,15]
[342415583,1731837038444,-24358.63360813,0.00023,15]
[342415584,1731837038460,-25502.4510555,0.00023,15]
[342415586,1731837038474,-521.63233059,0.00023,15]
[342415609,1731837043142,-18292.28339228,0.00023,15]
[342415631,1731837046191,-5377.0,0.00023,15]
[342415633,1731837074255,400.0,0.00013973,2]
[342415648,1731837803003,400.0,0.00013973,2]
[342415722,1731838232424,-300.0,0.00019104,2]
[342415731,1731838232502,-7224.19111885,0.00019105,2]
[342415733,1731838232513,-5000.0,0.00019105,2]
[342415735,1731838232524,-5000.0,0.00019105,2]
[342415737,1731838232535,-13.84825685,0.00019105,2]
[342415740,1731838232549,-4986.15174315,0.00019105,2]
[342415742,1731838232560,-5000.0,0.00019105,2]
[342415744,1731838232571,-400.0,0.00020447,2]
[342415746,1731838232583,-397.0,0.00021265,2]
[342415750,1731838232608,-165.628554,0.00021287,2]
[342415753,1731838232624,-165.628554,0.00021294,2]
[342415755,1731838232639,-165.628554,0.00021301,2]
[342415758,1731838232655,-165.628554,0.00021308,2]
[342415760,1731838232670,-165.628554,0.00021315,2]
[342415763,1731838232685,-165.628554,0.00021322,2]
[342415765,1731838232699,-165.628554,0.00021329,2]
[342415768,1731838232713,-165.628554,0.00021336,2]
[342415770,1731838232727,-165.628554,0.00021343,2]
[342415772,1731838232739,-3000.0,0.00021346,2]
[342415775,1731838232752,-165.628554,0.00021351,2]
[342415777,1731838232765,-165.628554,0.00021358,2]
[342415779,1731838232777,-165.628554,0.00021365,2]
[342415781,1731838232790,-165.628554,0.00021372,2]
[342415784,1731838232802,-165.628554,0.00021379,2]
[342415786,1731838232815,-165.628554,0.00021386,2]
[342415789,1731838232827,-165.628554,0.00021393,2]
[342415791,1731838232839,-415.64295864,0.000229,2]
[342415793,1731838232852,-19665.94833421,0.000229,2]
[342415876,1731838238529,-9320.27819836,0.000229,2]
[342415878,1731838238541,-1000.0,0.000229,2]
[342415880,1731838238551,-397.0,0.00022966,4]
[342415882,1731838238563,-500.0,0.00022973,2]
[342415885,1731838238574,-150.01,0.00022999,2]
[342415887,1731838238585,-200.0,0.00022999,4]
[342415889,1731838238596,-385.28762953,0.00022999,2]
[342415891,1731838238607,-4575.76053632,0.00022999,2]
[342415893,1731838238619,-267.31942039,0.00023,2]
[342415896,1731838238630,-13956.29193355,0.00023,15]
[342415898,1731838238645,-26338.35031758,0.00023,15]
[342415900,1731838238658,-178955.70071781,0.00023,15]
[342415903,1731838238672,-59557.540835,0.00023,15]
[342415936,1731838240332,-273982.11538932,0.00023,15]
[342415947,1731838243549,-5408.34087335,0.00023,15]
[342415948,1731838243561,-972.36348089,0.00023,15]
[342415960,1731838502025,400.0,0.00013973,2]
[342415962,1731838761758,1000.0,0.00026,60]
[342415964,1731838765701,1000.0,0.00026,65]
[342415965,1731838769413,1000.0,0.00026,70]
[342415966,1731838772317,1000.0,0.00026,75]
[342415967,1731838775960,500.0,0.00026,80]
[342415971,1731839239564,400.0,0.00013973,2]
[342416166,1731839329143,577.49417661,9.999e-05,2]
[342416167,1731839329180,124783.47723736,0.000109,2]
[342416454,1731839362116,-300.0,0.00010899,2]
[342416455,1731839362137,-10616.8097346,0.000109,2]
[342416966,1731839432891,-239.0,0.00010899,2]
[342416967,1731839432900,-344.62622193,0.000109,2]
[342416968,1731839432909,-98271.79434417,0.000109,2]
[342416969,1731839432918,-368.21211479,0.000129,2]
[342416970,1731839432927,-368.21211475,0.00013891,2]
[342416971,1731839432936,-368.21211475,0.00015892,2]
[342416972,1731839432946,-174.99666763,0.00017,7]
[342416973,1731839432957,-368.21211475,0.00017894,2]
[342416974,1731839432966,-368.21211475,0.00019895,2]
[342416975,1731839432975,-49999.78000001,0.0002,2]
[342416976,1731839432985,-400.0,0.00020447,2]
[342416977,1731839432994,-343.40601038,0.00020551,15]
[342416978,1731839433003,-164.17266,0.00020679,2]
[342416979,1731839433013,-584.92980255,0.00021,2]
[342416980,1731839433022,-4892.5807113,0.00021195,2]
[342416981,1731839433032,-161.443946,0.0002135,2]
[342416982,1731839433041,-4768.66246333,0.00021379,2]
[342416983,1731839433053,-6310.82452801,0.00021379,2]
[342416984,1731839433063,-3000.0,0.00021789,2]
[342416985,1731839433073,-368.21211475,0.00021897,2]
[342416986,1731839433083,-234.25471078,0.00021916,2]
[342416987,1731839433093,-239.31669159,0.00021916,2]
[342416989,1731839433103,-196.12927338,0.00021916,2]
[342416990,1731839433114,-229.22217217,0.00021916,2]
[342416991,1731839433124,-164.22186239,0.00021917,2]
[342416992,1731839433133,-500.0,0.00021917,2]
[342416993,1731839433144,-500.0,0.00021917,2]
[342416994,1731839433154,-502.78,0.00021917,2]
[342416995,1731839433163,-504.62638217,0.00021917,2]
[342416996,1731839433173,-500.0,0.00021917,2]
[342416997,1731839433183,-3538.71,0.00021917,2]
[342416998,1731839433193,-2307.28,0.00021917,2]
[342416999,1731839433202,-1140.08,0.00021917,2]
[342417000,1731839433212,-516.8131492,0.00021917,2]
[342417001,1731839433221,-546.00364726,0.00021917,2]
[342417002,1731839433231,-1149.99,0.00021917,2]
[342417003,1731839433241,-500.0,0.00021917,2]
[342417004,1731839433251,-500.0,0.00021917,2]
[342417005,1731839433260,-849.22,0.00021917,2]
[342417006,1731839433270,-2163.03,0.00021917,2]
[342417007,1731839433280,-500.0,0.00021917,2]
[342417008,1731839433289,-500.0,0.00021917,2]
[342417009,1731839433299,-1079.26,0.00021917,2]
[342417010,1731839433308,-825.39,0.00021917,2]
[342417011,1731839433317,-1516.06,0.00021917,2]
[342417012,1731839433327,-706.07,0.00021917,2]
[342417013,1731839433336,-500.0,0.00021917,2]
[342417014,1731839433345,-512.69354564,0.00021917,2]
[342417015,1731839433354,-500.0,0.00021917,2]
[342417016,1731839433367,-500.0,0.00021917,2]
[342417017,1731839433382,-500.0,0.00021917,2]
[342417018,1731839433396,-500.0,0.00021917,2]
[342417019,1731839433406,-242.56989569,0.00021917,2]
[342417020,1731839433416,-500.0,0.00021917,2]
[342417021,1731839433426,-1399.53,0.00021917,2]
[342417022,1731839433436,-2080.39,0.00021917,2]
[342417023,1731839433453,-1047.4,0.00021917,2]
[342417024,1731839433472,-545.05,0.00021917,2]
[342417025,1731839433482,-500.0,0.00021917,2]
[342417026,1731839433492,-1549.65,0.00021917,2]
[342417027,1731839433501,-641.1,0.00021917,2]
[342417028,1731839433511,-500.0,0.00021917,2]
[342417030,1731839433521,-1663.53,0.00021917,2]
[342417031,1731839433532,-500.0,0.00021917,2]
[342417032,1731839433543,-11009.93,0.00021917,2]
[342417033,1731839433553,-913.46,0.00021917,2]
[342417034,1731839433563,-500.0,0.00021917,2]
[342417035,1731839433573,-1141.25,0.00021917,2]
[342417037,1731839433583,-341.26441776,0.00021917,2]
[342417041,1731839433810,-500.0,0.00021917,2]
[342417042,1731839433820,-500.0,0.00021917,2]
[342417043,1731839433830,-1913.38,0.00021917,2]
[342417044,1731839433840,-500.0,0.00021917,2]
[342417045,1731839433850,-500.0,0.00021917,2]
[342417046,1731839433861,-8276.22,0.00021917,2]
[342417047,1731839433871,-830.1,0.00021917,2]
[342417049,1731839433881,-500.0,0.00021917,2]
[342417050,1731839433891,-1575.82,0.00021917,2]
[342417051,1731839433901,-2353.35,0.00021917,2]
[342417052,1731839433911,-500.0,0.00021917,2]
[342417053,1731839433921,-500.0,0.00021917,2]
[342417054,1731839433931,-2000.0,0.00021917,2]
[342417056,1731839433941,-791.94,0.00021917,2]
[342417057,1731839433951,-3621.61,0.00021917,2]
[342417058,1731839433961,-500.0,0.00021917,2]
[342417059,1731839433970,-1734.07,0.00021917,2]
[342417060,1731839433980,-1815.92,0.00021917,2]
[342417061,1731839433991,-500.0,0.00021917,2]
[342417062,1731839434002,-1614.45,0.00021917,2]
[342417063,1731839434012,-500.0,0.00021917,2]
[342417064,1731839434022,-915.86,0.00021917,2]
[342417065,1731839434031,-513.12081432,0.00021917,2]
[342417066,1731839434041,-500.0,0.00021917,2]
[342417067,1731839434050,-500.0,0.00021917,2]
[342417069,1731839434060,-812.69,0.00021917,2]
[342417070,1731839434070,-500.0,0.00021917,2]
[342417071,1731839434079,-500.0,0.00021917,2]
[342417072,1731839434090,-500.0,0.00021917,2]
[342417073,1731839434099,-500.0,0.00021917,2]
[342417074,1731839434110,-1083.52,0.00021917,2]
[342417075,1731839434120,-500.0,0.00021917,2]
[342417077,1731839434130,-106976.21237148,0.00022,30]
[342417078,1731839434139,-236.6065294,0.00022178,2]
[342417079,1731839434150,-500.0,0.00022191,2]
[342417080,1731839434160,-500.0,0.00022191,2]
[342417081,1731839434170,-502.78,0.00022191,2]
[342417082,1731839434180,-500.0,0.00022191,2]
[342417083,1731839434189,-3538.71,0.00022191,2]
[342417084,1731839434198,-7.77098196,0.00022191,2]
[342417085,1731839434231,-2299.50901804,0.00022191,2]
[342417086,1731839434241,-1140.08,0.00022191,2]
[342417087,1731839434252,-1149.99,0.00022191,2]
[342417088,1731839434262,-500.0,0.00022191,2]
[342417089,1731839434271,-500.0,0.00022191,2]
[342417090,1731839434281,-849.22,0.00022191,2]
[342417091,1731839434291,-2163.03,0.00022191,2]
[342417092,1731839434301,-500.0,0.00022191,2]
[342417093,1731839434310,-500.0,0.00022191,2]
[342417094,1731839434319,-1079.26,0.00022191,2]
[342417095,1731839434329,-825.39,0.00022191,2]
[342417096,1731839434339,-1516.06,0.00022191,2]
[342417097,1731839434350,-706.07,0.00022191,2]
[342417098,1731839434361,-500.0,0.00022191,2]
[342417099,1731839434371,-500.0,0.00022191,2]
[342417100,1731839434381,-500.0,0.00022191,2]
[342417102,1731839434391,-500.0,0.00022191,2]
[342417103,1731839434401,-500.0,0.00022191,2]
[342417104,1731839434411,-500.0,0.00022191,2]
[342417105,1731839434421,-1399.53,0.00022191,2]
[342417106,1731839434431,-2080.39,0.00022191,2]
[342417108,1731839434442,-1047.4,0.00022191,2]
[342417109,1731839434454,-545.05,0.00022191,2]
[342417110,1731839434465,-500.0,0.00022191,2]
[342417111,1731839434475,-1549.65,0.00022191,2]
[342417112,1731839434485,-641.1,0.00022191,2]
[342417114,1731839434496,-500.0,0.00022191,2]
[342417115,1731839434507,-1663.53,0.00022191,2]
[342417116,1731839434518,-500.0,0.00022191,2]
[342417117,1731839434529,-11009.93,0.00022191,2]
[342417118,1731839434540,-913.46,0.00022191,2]
[342417120,1731839434551,-500.0,0.00022191,2]
[342417121,1731839434561,-1141.25,0.00022191,2]
[342417122,1731839434571,-500.0,0.00022191,2]
[342417123,1731839434581,-500.0,0.00022191,2]
[342417124,1731839434591,-1913.38,0.00022191,2]
[342417125,1731839434602,-530.09453393,0.00022191,2]